[Event "Early-Titled-Tuesday-Blitz-February-06-2024"]
[Site "Chess.com"]
[Date "2024.02.06"]
[Round "10"]
[White "margarita_2703"]
[Black "Attacker_2006"]
[Result "0-1"]
[WhiteElo "2355"]
[BlackElo "2488"]
[TimeControl "180+1"]
[EndTime "9:54:52 PST"]
[Termination "Attacker_2006 won by resignation"]

1. e4 {[%clk 0:03:00.9]} 1... e5 {[%clk 0:02:59.6]} 2. Nf3 {[%clk 0:02:55.2]}
2... Nc6 {[%clk 0:02:59.7]} 3. Bb5 {[%clk 0:02:55.8]} 3... a6 {[%clk 0:02:59.4]}
4. Ba4 {[%clk 0:02:53.9]} 4... Nf6 {[%clk 0:02:59.1]} 5. O-O {[%clk 0:02:52.1]}
5... Nxe4 {[%clk 0:02:59.2]} 6. d4 {[%clk 0:02:38.4]} 6... b5 {[%clk 0:02:58.7]}
7. Bb3 {[%clk 0:02:37.7]} 7... d5 {[%clk 0:02:59.1]} 8. dxe5 {[%clk 0:02:37.8]}
8... Be6 {[%clk 0:02:58.9]} 9. c3 {[%clk 0:02:31.8]} 9... Bc5 {[%clk 0:02:55]}
10. Qe2 {[%clk 0:02:26.1]} 10... Qd7 {[%clk 0:02:41.7]} 11. Nbd2 {[%clk
0:02:22.9]} 11... Nxd2 {[%clk 0:02:36.8]} 12. Bxd2 {[%clk 0:02:20.9]} 12... O-O
{[%clk 0:02:27.5]} 13. a4 {[%clk 0:02:18.7]} 13... Rab8 {[%clk 0:02:06.9]} 14.
Rfd1 {[%clk 0:01:58.8]} 14... Bg4 {[%clk 0:02:02.6]} 15. h3 {[%clk 0:01:41.2]}
15... Bxf3 {[%clk 0:01:53.4]} 16. Qxf3 {[%clk 0:01:42.1]} 16... Nxe5 {[%clk
0:01:46.4]} 17. Qxd5 {[%clk 0:01:31.9]} 17... Qxd5 {[%clk 0:01:39.6]} 18. Bxd5
{[%clk 0:01:32.8]} 18... Nd3 {[%clk 0:01:26.6]} 19. Be3 {[%clk 0:01:14.1]} 19...
Bxe3 {[%clk 0:01:25.8]} 20. fxe3 {[%clk 0:01:15]} 20... Nxb2 {[%clk 0:01:26.4]}
21. Rdb1 {[%clk 0:01:09.3]} 21... Nxa4 {[%clk 0:01:22.8]} 22. Bb3 {[%clk
0:01:06.7]} 22... Nxc3 {[%clk 0:01:21.2]} 23. Rb2 {[%clk 0:01:03.5]} 23... Rb6
{[%clk 0:01:15.8]} 24. Bd1 {[%clk 0:00:59.2]} 24... Nxd1 {[%clk 0:01:15.3]} 25.
Rxd1 {[%clk 0:01:00.1]} 25... a5 {[%clk 0:01:13.4]} 26. Rdb1 {[%clk 0:00:58.1]}
26... b4 {[%clk 0:01:12.9]} 27. Rc1 {[%clk 0:00:51.6]} 27... c6 {[%clk
0:01:10.8]} 28. Ra1 {[%clk 0:00:49.9]} 28... Rb5 {[%clk 0:01:08.4]} 29. Rba2
{[%clk 0:00:36.7]} 29... b3 {[%clk 0:01:04]} 30. Ra4 {[%clk 0:00:29.2]} 30...
Re8 {[%clk 0:00:57.4]} 31. Kf2 {[%clk 0:00:27.4]} 31... b2 {[%clk 0:00:55.9]}
32. Rb1 {[%clk 0:00:25.6]} 32... c5 {[%clk 0:00:55.2]} 33. Ke2 {[%clk
0:00:24.8]} 33... Rb3 {[%clk 0:00:53]} 34. Rxa5 {[%clk 0:00:20.6]} 34... c4
{[%clk 0:00:53]} 35. Rc5 {[%clk 0:00:15.4]} 35... Rbxe3+ {[%clk 0:00:52.3]} 36.
Kf2 {[%clk 0:00:13.4]} 36... c3 {[%clk 0:00:51.6]} 37. Kg1 {[%clk 0:00:09.9]}
37... Re1+ {[%clk 0:00:50.9]} 0-1

[Event "Early-Titled-Tuesday-Blitz-February-06-2024"]
[Site "Chess.com"]
[Date "2024.02.06"]
[Round "10"]
[White "deepfear"]
[Black "mary-sanna"]
[Result "0-1"]
[WhiteElo "1973"]
[BlackElo "2194"]
[TimeControl "180+1"]
[EndTime "9:54:52 PST"]
[Termination "mary-sanna won on time"]

1. e4 {[%clk 0:02:56.5]} 1... c5 {[%clk 0:02:50]} 2. Nc3 {[%clk 0:02:54.9]} 2...
Nc6 {[%clk 0:02:49.2]} 3. f4 {[%clk 0:02:54.2]} 3... g6 {[%clk 0:02:48.2]} 4.
Nf3 {[%clk 0:02:54.1]} 4... Bg7 {[%clk 0:02:48.5]} 5. Bc4 {[%clk 0:02:53.5]}
5... e6 {[%clk 0:02:48.3]} 6. f5 {[%clk 0:02:50.5]} 6... exf5 {[%clk 0:02:42.7]}
7. exf5 {[%clk 0:02:48.2]} 7... Nf6 {[%clk 0:02:29]} 8. fxg6 {[%clk 0:02:36.5]}
8... hxg6 {[%clk 0:02:28.4]} 9. O-O {[%clk 0:02:29.8]} 9... d5 {[%clk
0:02:20.2]} 10. Re1+ {[%clk 0:02:21.2]} 10... Be6 {[%clk 0:02:16.3]} 11. Bb5
{[%clk 0:02:13.5]} 11... Qd6 {[%clk 0:02:12.3]} 12. d4 {[%clk 0:01:28.6]} 12...
c4 {[%clk 0:02:04.1]} 13. Ne5 {[%clk 0:01:09.5]} 13... Nd7 {[%clk 0:01:36.6]}
14. Bf4 {[%clk 0:00:51.9]} 14... Ndxe5 {[%clk 0:01:30.7]} 15. Bxe5 {[%clk
0:00:23.5]} 15... Bxe5 {[%clk 0:01:28.3]} 16. dxe5 {[%clk 0:00:23.8]} 16... Qc5+
{[%clk 0:01:25.5]} 17. Kh1 {[%clk 0:00:18.5]} 17... O-O-O {[%clk 0:01:25.5]} 18.
Bxc6 {[%clk 0:00:17.6]} 18... Rxh2+ {[%clk 0:01:18.4]} 19. Kxh2 {[%clk
0:00:16.3]} 19... Rh8+ {[%clk 0:01:18.2]} 20. Kg3 {[%clk 0:00:16.7]} 20... Qxc6
{[%clk 0:01:08]} 21. Qf3 {[%clk 0:00:12.9]} 21... Qc7 {[%clk 0:01:00.6]} 22. Qf6
{[%clk 0:00:12.1]} 22... Rh5 {[%clk 0:00:55.6]} 23. Rh1 {[%clk 0:00:12.7]} 23...
Rxe5 {[%clk 0:00:53.9]} 24. Rh8+ {[%clk 0:00:11.3]} 24... Kd7 {[%clk 0:00:54.1]}
25. Kh4 {[%clk 0:00:06.5]} 25... g5+ {[%clk 0:00:44.8]} 26. Kh5 {[%clk
0:00:03.9]} 26... g4+ {[%clk 0:00:43.6]} 27. Kh4 {[%clk 0:00:04.2]} 27... Re3
{[%clk 0:00:38.1]} 28. Rf1 {[%clk 0:00:01.4]} 28... Qh2+ {[%clk 0:00:30.5]} 0-1

[Event "Early-Titled-Tuesday-Blitz-February-06-2024"]
[Site "Chess.com"]
[Date "2024.02.06"]
[Round "10"]
[White "kleopl"]
[Black "Adar_07"]
[Result "0-1"]
[WhiteElo "2542"]
[BlackElo "2725"]
[TimeControl "180+1"]
[EndTime "9:55:03 PST"]
[Termination "Adar_07 won by resignation"]

1. e4 {[%clk 0:02:48.9]} 1... e6 {[%clk 0:03:00.1]} 2. d4 {[%clk 0:02:47.7]}
2... d5 {[%clk 0:03:01]} 3. e5 {[%clk 0:02:47.8]} 3... c5 {[%clk 0:03:00.7]} 4.
Qg4 {[%clk 0:02:48.4]} 4... Nc6 {[%clk 0:02:48.4]} 5. Nf3 {[%clk 0:02:47.2]}
5... cxd4 {[%clk 0:02:45.9]} 6. Bd3 {[%clk 0:02:46.8]} 6... Nge7 {[%clk
0:02:37.3]} 7. O-O {[%clk 0:02:45.3]} 7... Ng6 {[%clk 0:02:35.8]} 8. Re1 {[%clk
0:02:45]} 8... Bd7 {[%clk 0:02:33.9]} 9. h4 {[%clk 0:02:43.4]} 9... Bb4 {[%clk
0:02:26.9]} 10. Bd2 {[%clk 0:02:40.4]} 10... Bxd2 {[%clk 0:02:19.1]} 11. Nbxd2
{[%clk 0:02:41.3]} 11... h5 {[%clk 0:01:58]} 12. Qg3 {[%clk 0:02:40.1]} 12...
Rh6 {[%clk 0:01:57.8]} 13. Nb3 {[%clk 0:02:26.5]} 13... Qb6 {[%clk 0:01:53.4]}
14. Ng5 {[%clk 0:02:22.6]} 14... a5 {[%clk 0:01:39.9]} 15. a4 {[%clk 0:01:51.1]}
15... Rc8 {[%clk 0:01:37.9]} 16. f4 {[%clk 0:01:24.6]} 16... Nb4 {[%clk
0:01:26.9]} 17. f5 {[%clk 0:01:16.3]} 17... Nxd3 {[%clk 0:01:26.3]} 18. Qxd3
{[%clk 0:01:04.4]} 18... Nxh4 {[%clk 0:00:55.5]} 19. Qxd4 {[%clk 0:00:59.3]}
19... Qxd4+ {[%clk 0:00:43]} 20. Nxd4 {[%clk 0:01:00.2]} 20... Nxf5 {[%clk
0:00:43.3]} 21. Nxf5 {[%clk 0:00:59.4]} 21... exf5 {[%clk 0:00:44.2]} 22. c3
{[%clk 0:00:58.6]} 22... Rb6 {[%clk 0:00:44.2]} 23. Re2 {[%clk 0:00:51.4]} 23...
Rc4 {[%clk 0:00:41.9]} 24. Rd1 {[%clk 0:00:46.4]} 24... Be6 {[%clk 0:00:39.9]}
25. Nf3 {[%clk 0:00:36.2]} 25... Rxa4 {[%clk 0:00:37.6]} 26. Nd4 {[%clk
0:00:35.3]} 26... Ra2 {[%clk 0:00:37.5]} 27. Rdd2 {[%clk 0:00:35.4]} 27... a4
{[%clk 0:00:37.4]} 28. Kh2 {[%clk 0:00:33.8]} 28... a3 {[%clk 0:00:33]} 29. bxa3
{[%clk 0:00:33]} 29... Rxa3 {[%clk 0:00:32.3]} 30. Rb2 {[%clk 0:00:31.4]} 30...
Rxb2 {[%clk 0:00:29.6]} 31. Rxb2 {[%clk 0:00:32.3]} 31... Rxc3 {[%clk
0:00:28.8]} 32. Rxb7 {[%clk 0:00:32.5]} 32... Rc4 {[%clk 0:00:29.4]} 33. Nxe6
{[%clk 0:00:30.6]} 33... fxe6 {[%clk 0:00:30.3]} 34. Rxg7 {[%clk 0:00:30.5]}
34... Re4 {[%clk 0:00:29.7]} 35. Rh7 {[%clk 0:00:28.6]} 35... Rxe5 {[%clk
0:00:26.7]} 36. Rxh5 {[%clk 0:00:28.6]} 36... d4 {[%clk 0:00:26.9]} 37. Rh3
{[%clk 0:00:24.1]} 37... Rd5 {[%clk 0:00:25.6]} 38. Kg1 {[%clk 0:00:23.4]} 38...
d3 {[%clk 0:00:25.6]} 0-1

[Event "Early-Titled-Tuesday-Blitz-February-06-2024"]
[Site "Chess.com"]
[Date "2024.02.06"]
[Round "10"]
[White "ValentinDragnev"]
[Black "Blitzking642"]
[Result "1/2-1/2"]
[WhiteElo "2747"]
[BlackElo "2543"]
[TimeControl "180+1"]
[EndTime "9:55:03 PST"]
[Termination "Game drawn by repetition"]

1. d4 {[%clk 0:02:53.5]} 1... d5 {[%clk 0:02:59.1]} 2. Nf3 {[%clk 0:02:54.4]}
2... Nf6 {[%clk 0:02:58.4]} 3. Bf4 {[%clk 0:02:55.1]} 3... e6 {[%clk 0:02:52.8]}
4. e3 {[%clk 0:02:55.5]} 4... Bd6 {[%clk 0:02:51.7]} 5. Nbd2 {[%clk 0:02:55.9]}
5... O-O {[%clk 0:02:47.5]} 6. c3 {[%clk 0:02:56.4]} 6... Bxf4 {[%clk
0:02:45.5]} 7. exf4 {[%clk 0:02:57.3]} 7... c5 {[%clk 0:02:46.1]} 8. h4 {[%clk
0:02:55.7]} 8... Qc7 {[%clk 0:02:41.8]} 9. g3 {[%clk 0:02:55.3]} 9... b6 {[%clk
0:02:42.2]} 10. h5 {[%clk 0:02:53.9]} 10... Ba6 {[%clk 0:02:39]} 11. h6 {[%clk
0:02:53.3]} 11... g6 {[%clk 0:02:38.4]} 12. Bxa6 {[%clk 0:02:53.1]} 12... Nxa6
{[%clk 0:02:38]} 13. Qe2 {[%clk 0:02:53.8]} 13... Nb8 {[%clk 0:02:37.2]} 14. Ne5
{[%clk 0:02:43.3]} 14... Nbd7 {[%clk 0:02:35.2]} 15. Nxd7 {[%clk 0:02:41.9]}
15... Nxd7 {[%clk 0:02:31.1]} 16. Nf3 {[%clk 0:02:42]} 16... Rac8 {[%clk
0:02:19.4]} 17. O-O-O {[%clk 0:02:40.2]} 17... Rfe8 {[%clk 0:02:06.3]} 18. Kb1
{[%clk 0:02:39.9]} 18... c4 {[%clk 0:02:00]} 19. Ne5 {[%clk 0:02:31.9]} 19...
Nxe5 {[%clk 0:01:48.1]} 20. Qxe5 {[%clk 0:02:31.4]} 20... Qxe5 {[%clk
0:01:47.7]} 21. fxe5 {[%clk 0:02:32.3]} 21... b5 {[%clk 0:01:38.4]} 22. Kc2
{[%clk 0:02:32.5]} 22... Rb8 {[%clk 0:01:37.5]} 23. a3 {[%clk 0:02:32.2]} 23...
a5 {[%clk 0:01:37.2]} 24. Ra1 {[%clk 0:02:30.1]} 24... Rb7 {[%clk 0:01:36.4]}
25. f4 {[%clk 0:02:28.8]} 25... Reb8 {[%clk 0:01:36.6]} 26. g4 {[%clk
0:02:20.6]} 26... Kf8 {[%clk 0:01:34.7]} 27. f5 {[%clk 0:02:20]} 27... gxf5
{[%clk 0:01:33]} 28. gxf5 {[%clk 0:02:20.2]} 28... exf5 {[%clk 0:01:33.1]} 29.
Rh5 {[%clk 0:02:14]} 29... Rb6 {[%clk 0:01:15.7]} 30. Rf1 {[%clk 0:02:12.1]}
30... R8b7 {[%clk 0:01:09.9]} 31. Rfxf5 {[%clk 0:02:08.4]} 31... b4 {[%clk
0:01:06]} 32. cxb4 {[%clk 0:01:49.2]} 32... axb4 {[%clk 0:01:06.9]} 33. a4
{[%clk 0:01:50]} 33... Rg6 {[%clk 0:00:57.4]} 34. Rh2 {[%clk 0:01:41]} 34...
Rbb6 {[%clk 0:00:55.4]} 35. Rhf2 {[%clk 0:01:36.2]} 35... Rb7 {[%clk 0:00:47.5]}
36. Rf6 {[%clk 0:01:31.2]} 36... Ke8 {[%clk 0:00:40.8]} 37. a5 {[%clk
0:01:24.1]} 37... Ra7 {[%clk 0:00:37.8]} 38. e6 {[%clk 0:00:59.9]} 38... Rxf6
{[%clk 0:00:34.3]} 39. Rxf6 {[%clk 0:01:00.8]} 39... fxe6 {[%clk 0:00:32.3]} 40.
Rxe6+ {[%clk 0:00:57.3]} 40... Kf7 {[%clk 0:00:29.6]} 41. Rb6 {[%clk 0:00:51.1]}
41... b3+ {[%clk 0:00:29.2]} 42. Kc3 {[%clk 0:00:52]} 42... Rxa5 {[%clk
0:00:29.4]} 43. Rd6 {[%clk 0:00:49.7]} 43... Rb5 {[%clk 0:00:27.8]} 44. Ra6
{[%clk 0:00:47.8]} 44... Rb7 {[%clk 0:00:25.1]} 45. Rd6 {[%clk 0:00:47.5]} 45...
Rb5 {[%clk 0:00:25.1]} 46. Ra6 {[%clk 0:00:47.3]} 46... Rb7 {[%clk 0:00:25.3]}
47. Rd6 {[%clk 0:00:47.5]} 47... Rb5 {[%clk 0:00:25.4]} 1/2-1/2

[Event "Early-Titled-Tuesday-Blitz-February-06-2024"]
[Site "Chess.com"]
[Date "2024.02.06"]
[Round "10"]
[White "EvgenyBurmakin"]
[Black "NowInChess"]
[Result "0-1"]
[WhiteElo "2418"]
[BlackElo "2351"]
[TimeControl "180+1"]
[EndTime "9:55:03 PST"]
[Termination "NowInChess won on time"]

1. e4 {[%clk 0:03:00.9]} 1... e6 {[%clk 0:03:00.2]} 2. d4 {[%clk 0:03:00.3]}
2... d5 {[%clk 0:03:00.8]} 3. Nd2 {[%clk 0:03:00.8]} 3... Nc6 {[%clk 0:03:00.5]}
4. Ngf3 {[%clk 0:02:58.9]} 4... Nf6 {[%clk 0:03:00.6]} 5. e5 {[%clk 0:02:58.4]}
5... Nd7 {[%clk 0:03:00.9]} 6. c3 {[%clk 0:02:58]} 6... f6 {[%clk 0:03:01.2]} 7.
exf6 {[%clk 0:02:56.8]} 7... Qxf6 {[%clk 0:03:02.1]} 8. Bd3 {[%clk 0:02:56.5]}
8... Bd6 {[%clk 0:03:02.1]} 9. O-O {[%clk 0:02:49.5]} 9... e5 {[%clk 0:03:01.1]}
10. dxe5 {[%clk 0:02:48.7]} 10... Ndxe5 {[%clk 0:03:02]} 11. Re1 {[%clk
0:02:42.4]} 11... O-O {[%clk 0:03:01.2]} 12. Be2 {[%clk 0:02:15]} 12... Ng4
{[%clk 0:02:21.9]} 13. Rf1 {[%clk 0:01:55.5]} 13... Nce5 {[%clk 0:01:55.5]} 14.
h3 {[%clk 0:01:49.5]} 14... Nh6 {[%clk 0:01:26.5]} 15. Nb3 {[%clk 0:01:44.2]}
15... c6 {[%clk 0:01:22]} 16. Bxh6 {[%clk 0:01:24.4]} 16... Qxh6 {[%clk
0:01:20.1]} 17. Qd2 {[%clk 0:00:59.6]} 17... Nxf3+ {[%clk 0:01:05.8]} 18. Bxf3
{[%clk 0:00:58.3]} 18... Qg6 {[%clk 0:01:04.3]} 19. Kh1 {[%clk 0:00:16.2]} 19...
Bf5 {[%clk 0:00:55.3]} 20. Nd4 {[%clk 0:00:14.8]} 20... Bd7 {[%clk 0:00:48.6]}
21. Rae1 {[%clk 0:00:13.5]} 21... Rad8 {[%clk 0:00:42.8]} 22. b4 {[%clk
0:00:11.5]} 22... Bf4 {[%clk 0:00:39.7]} 23. Qc2 {[%clk 0:00:11.2]} 23... Qh6
{[%clk 0:00:32.9]} 24. Kg1 {[%clk 0:00:08.2]} 24... Bxh3 {[%clk 0:00:29.5]} 25.
g3 {[%clk 0:00:03.7]} 25... Bxf1 {[%clk 0:00:26.8]} 26. Kxf1 {[%clk 0:00:04.1]}
26... Bd6 {[%clk 0:00:24.9]} 27. Kg2 {[%clk 0:00:03.3]} 27... Qf6 {[%clk
0:00:24.1]} 28. Ne6 {[%clk 0:00:03.2]} 28... Qxf3+ {[%clk 0:00:22.2]} 29. Kg1
{[%clk 0:00:02.8]} 29... Rde8 {[%clk 0:00:21.7]} 0-1

[Event "Early-Titled-Tuesday-Blitz-February-06-2024"]
[Site "Chess.com"]
[Date "2024.02.06"]
[Round "10"]
[White "Rawnsdale"]
[Black "KanalSzachowy"]
[Result "1-0"]
[WhiteElo "2504"]
[BlackElo "2373"]
[TimeControl "180+1"]
[EndTime "9:55:05 PST"]
[Termination "Rawnsdale won on time"]

1. e4 {[%clk 0:03:00.9]} 1... c5 {[%clk 0:02:56.9]} 2. Nf3 {[%clk 0:02:59.3]}
2... Nc6 {[%clk 0:02:56.9]} 3. d4 {[%clk 0:02:59.6]} 3... cxd4 {[%clk
0:02:57.8]} 4. Nxd4 {[%clk 0:03:00.4]} 4... Nf6 {[%clk 0:02:58.4]} 5. Nc3 {[%clk
0:02:59.6]} 5... e5 {[%clk 0:02:58.8]} 6. Ndb5 {[%clk 0:02:59.6]} 6... d6 {[%clk
0:02:59.1]} 7. Nd5 {[%clk 0:02:59.4]} 7... Nxd5 {[%clk 0:02:58.9]} 8. exd5
{[%clk 0:03:00.3]} 8... Nb8 {[%clk 0:02:59.5]} 9. c4 {[%clk 0:03:00.9]} 9... Be7
{[%clk 0:02:58.8]} 10. c5 {[%clk 0:03:01]} 10... O-O {[%clk 0:02:58.4]} 11. Be2
{[%clk 0:02:57.1]} 11... Na6 {[%clk 0:02:58.6]} 12. cxd6 {[%clk 0:02:48.1]}
12... Bxd6 {[%clk 0:02:59.5]} 13. O-O {[%clk 0:02:48.1]} 13... f5 {[%clk
0:02:53.9]} 14. f4 {[%clk 0:02:42.4]} 14... Kh8 {[%clk 0:02:40.3]} 15. Nxd6
{[%clk 0:02:39.4]} 15... Qxd6 {[%clk 0:02:40.6]} 16. fxe5 {[%clk 0:02:39.7]}
16... Qxe5 {[%clk 0:02:41.5]} 17. Bf4 {[%clk 0:02:39.9]} 17... Qf6 {[%clk
0:02:36.6]} 18. d6 {[%clk 0:02:35.4]} 18... Bd7 {[%clk 0:02:36.1]} 19. Bf3
{[%clk 0:02:07.5]} 19... Nc5 {[%clk 0:02:30.9]} 20. b4 {[%clk 0:02:05.2]} 20...
Ne4 {[%clk 0:02:25.1]} 21. Re1 {[%clk 0:01:42.9]} 21... Rae8 {[%clk 0:02:18.2]}
22. Rc1 {[%clk 0:01:34.1]} 22... Qh4 {[%clk 0:02:03.1]} 23. g3 {[%clk
0:01:29.7]} 23... Qf6 {[%clk 0:01:45]} 24. Rc7 {[%clk 0:01:24.5]} 24... Bc6
{[%clk 0:01:22.8]} 25. Re7 {[%clk 0:01:09.8]} 25... Qc3 {[%clk 0:00:48]} 26. Be5
{[%clk 0:01:06.6]} 26... Qxb4 {[%clk 0:00:21.7]} 27. Bxg7+ {[%clk 0:01:06.5]}
27... Kg8 {[%clk 0:00:22.2]} 28. Bxe4 {[%clk 0:01:01.5]} 28... Bxe4 {[%clk
0:00:19.8]} 29. Bxf8 {[%clk 0:00:52.3]} 29... Qb6+ {[%clk 0:00:19]} 30. Kf1
{[%clk 0:00:52.1]} 30... Qb5+ {[%clk 0:00:15]} 31. Re2 {[%clk 0:00:50.1]} 31...
Rxf8 {[%clk 0:00:12.6]} 32. Qd4 {[%clk 0:00:48.6]} 32... Qb1+ {[%clk 0:00:09.4]}
33. Kf2 {[%clk 0:00:48.2]} 33... Qb6 {[%clk 0:00:04.6]} 34. Qxb6 {[%clk
0:00:42]} 34... axb6 {[%clk 0:00:04.8]} 35. d7 {[%clk 0:00:42.6]} 35... Bc6
{[%clk 0:00:02.2]} 36. R2e6 {[%clk 0:00:35.4]} 1-0

[Event "Early-Titled-Tuesday-Blitz-February-06-2024"]
[Site "Chess.com"]
[Date "2024.02.06"]
[Round "10"]
[White "Keeper0416"]
[Black "nikitadovbnya2008"]
[Result "0-1"]
[WhiteElo "2561"]
[BlackElo "2331"]
[TimeControl "180+1"]
[EndTime "9:55:06 PST"]
[Termination "nikitadovbnya2008 won by resignation"]

1. Nc3 {[%clk 0:03:00.9]} 1... g6 {[%clk 0:02:57.5]} 2. h4 {[%clk 0:02:59.5]}
2... Bg7 {[%clk 0:02:56.4]} 3. h5 {[%clk 0:03:00]} 3... Nf6 {[%clk 0:02:56.1]}
4. h6 {[%clk 0:03:00.1]} 4... Bf8 {[%clk 0:02:56.2]} 5. e4 {[%clk 0:02:59.7]}
5... e5 {[%clk 0:02:55]} 6. Bc4 {[%clk 0:02:55.7]} 6... d6 {[%clk 0:02:52.7]} 7.
Nf3 {[%clk 0:02:53.5]} 7... Be6 {[%clk 0:02:53]} 8. d3 {[%clk 0:02:33.2]} 8...
Nc6 {[%clk 0:02:48.4]} 9. Bb5 {[%clk 0:02:15.5]} 9... Bd7 {[%clk 0:02:24.7]} 10.
Ng5 {[%clk 0:01:53.3]} 10... Nd4 {[%clk 0:02:17.4]} 11. Bc4 {[%clk 0:01:50.9]}
11... Be6 {[%clk 0:02:14.4]} 12. Nxe6 {[%clk 0:01:46.7]} 12... fxe6 {[%clk
0:02:15.3]} 13. Be3 {[%clk 0:01:37.3]} 13... Qd7 {[%clk 0:02:13.8]} 14. f4
{[%clk 0:01:36.1]} 14... O-O-O {[%clk 0:01:59.8]} 15. a4 {[%clk 0:01:17.4]}
15... d5 {[%clk 0:01:37.7]} 16. fxe5 {[%clk 0:01:04.8]} 16... dxc4 {[%clk
0:01:36.3]} 17. exf6 {[%clk 0:01:04.8]} 17... Bc5 {[%clk 0:01:30.7]} 18. O-O
{[%clk 0:00:53.3]} 18... Nxc2 {[%clk 0:01:10.5]} 19. Bxc5 {[%clk 0:00:48.4]}
19... Nxa1 {[%clk 0:01:10.7]} 20. dxc4 {[%clk 0:00:32.7]} 20... Qxd1 {[%clk
0:01:08.4]} 21. Rxd1 {[%clk 0:00:33.6]} 21... Rxd1+ {[%clk 0:01:05]} 22. Nxd1
{[%clk 0:00:34.3]} 22... b6 {[%clk 0:01:05.3]} 23. Be7 {[%clk 0:00:12.5]} 23...
Kd7 {[%clk 0:01:03.7]} 24. Ne3 {[%clk 0:00:12]} 24... Nb3 {[%clk 0:00:42]} 25.
Ng4 {[%clk 0:00:11.1]} 25... Nc5 {[%clk 0:00:32.9]} 26. Ne5+ {[%clk 0:00:10.7]}
26... Ke8 {[%clk 0:00:32.4]} 27. Bxc5 {[%clk 0:00:07.2]} 27... bxc5 {[%clk
0:00:32.3]} 28. a5 {[%clk 0:00:06.5]} 28... Rf8 {[%clk 0:00:29.3]} 29. Ng4
{[%clk 0:00:03.3]} 29... Kf7 {[%clk 0:00:27.3]} 30. e5 {[%clk 0:00:02.4]} 30...
Rd8 {[%clk 0:00:27]} 31. Kf2 {[%clk 0:00:02.5]} 31... Rd4 {[%clk 0:00:26.8]} 32.
Kf1 {[%clk 0:00:03.4]} 32... Rxg4 {[%clk 0:00:26.7]} 0-1

[Event "Early-Titled-Tuesday-Blitz-February-06-2024"]
[Site "Chess.com"]
[Date "2024.02.06"]
[Round "10"]
[White "kai_nov"]
[Black "Matols"]
[Result "0-1"]
[WhiteElo "2284"]
[BlackElo "2390"]
[TimeControl "180+1"]
[EndTime "9:55:06 PST"]
[Termination "Matols won by resignation"]

1. e4 {[%clk 0:02:51.7]} 1... c6 {[%clk 0:03:00]} 2. d4 {[%clk 0:02:49.6]} 2...
d5 {[%clk 0:03:00.4]} 3. e5 {[%clk 0:02:47.8]} 3... c5 {[%clk 0:02:59.9]} 4. c3
{[%clk 0:02:43.1]} 4... Nc6 {[%clk 0:02:57.1]} 5. Nf3 {[%clk 0:02:41.9]} 5...
Bg4 {[%clk 0:02:55.7]} 6. Be2 {[%clk 0:02:41.5]} 6... e6 {[%clk 0:02:55.1]} 7.
O-O {[%clk 0:02:41]} 7... Nge7 {[%clk 0:02:51]} 8. h3 {[%clk 0:02:39.8]} 8...
Bxf3 {[%clk 0:02:50.3]} 9. Bxf3 {[%clk 0:02:37.1]} 9... Nf5 {[%clk 0:02:49.9]}
10. Qa4 {[%clk 0:02:32.8]} 10... cxd4 {[%clk 0:02:47.7]} 11. cxd4 {[%clk
0:02:29.9]} 11... Nxd4 {[%clk 0:02:45.5]} 12. Bd1 {[%clk 0:02:25]} 12... Be7
{[%clk 0:02:44.2]} 13. Nc3 {[%clk 0:02:10.8]} 13... O-O {[%clk 0:02:42.4]} 14.
Be3 {[%clk 0:02:06.8]} 14... Nf5 {[%clk 0:02:40.3]} 15. Bf4 {[%clk 0:02:00.4]}
15... a6 {[%clk 0:02:38.7]} 16. Qc2 {[%clk 0:01:57.8]} 16... Rc8 {[%clk
0:02:37]} 17. Qb1 {[%clk 0:01:48.7]} 17... b5 {[%clk 0:02:33.1]} 18. a3 {[%clk
0:01:44.6]} 18... Bc5 {[%clk 0:02:13.5]} 19. Bc2 {[%clk 0:01:42.4]} 19... Ncd4
{[%clk 0:02:12.9]} 20. Bxf5 {[%clk 0:01:19.6]} 20... Nxf5 {[%clk 0:02:11.4]} 21.
Rd1 {[%clk 0:01:12.3]} 21... Qh4 {[%clk 0:01:54.5]} 22. g3 {[%clk 0:00:29.2]}
22... Nxg3 {[%clk 0:01:49.1]} 23. Bxg3 {[%clk 0:00:27.8]} 23... Qxg3+ {[%clk
0:01:48.4]} 24. Kh1 {[%clk 0:00:28]} 24... Bxf2 {[%clk 0:01:47.2]} 25. Rd3
{[%clk 0:00:26.3]} 25... Qxe5 {[%clk 0:01:43.3]} 26. Qf1 {[%clk 0:00:25]} 26...
Bb6 {[%clk 0:01:36.6]} 27. Qg2 {[%clk 0:00:24.5]} 27... Rc4 {[%clk 0:01:24.8]}
28. Rg3 {[%clk 0:00:22.1]} 28... g6 {[%clk 0:01:18.4]} 29. Rg5 {[%clk
0:00:19.7]} 29... Qf6 {[%clk 0:01:13.2]} 30. Rf1 {[%clk 0:00:18.6]} 30... Rf4
{[%clk 0:01:13.6]} 31. Rxf4 {[%clk 0:00:16.2]} 31... Qxf4 {[%clk 0:01:14.5]} 32.
Rg4 {[%clk 0:00:14.6]} 32... Qc1+ {[%clk 0:01:13.7]} 33. Kh2 {[%clk 0:00:07.4]}
33... Bc7+ {[%clk 0:01:13.5]} 34. Rg3 {[%clk 0:00:06.9]} 34... Bxg3+ {[%clk
0:01:03.4]} 35. Qxg3 {[%clk 0:00:06.1]} 35... Qxb2+ {[%clk 0:01:01.9]} 36. Kg1
{[%clk 0:00:05.7]} 36... Rc8 {[%clk 0:01:00.3]} 37. Nd1 {[%clk 0:00:03.1]} 37...
Rc1 {[%clk 0:00:51.3]} 38. Qd3 {[%clk 0:00:03.2]} 38... Qb1 {[%clk 0:00:44.8]}
39. Qd4 {[%clk 0:00:02.1]} 39... Rxd1+ {[%clk 0:00:43.8]} 0-1